fUSD/lending_fUSD_20240327
["ID","MTS","AMOUNT","RATE_DAILY","PERIOD"]
[320796799,1711561867385,-151.0,0.00054246,120]
[320796800,1711561867396,-543.16,0.00054246,120]
[320796801,1711561867406,-500.0,0.00054246,120]
[320796802,1711561867417,-500.0,0.00054246,120]
[320796803,1711561867426,-500.0,0.00054246,120]
[320796804,1711561867436,-1437.25,0.00054246,120]
[320796805,1711561867445,-500.0,0.00054246,120]
[320796806,1711561867460,-500.0,0.00054246,120]
[320796807,1711561867469,-500.0,0.00054246,120]
[320796808,1711561867493,-13261.96,0.00054246,120]
[320796809,1711561867504,-500.0,0.00054246,120]
[320796810,1711561867516,-500.0,0.00054246,120]
[320796811,1711561867583,-500.0,0.00054246,120]
[320796812,1711561867593,-500.0,0.00054246,120]
[320796813,1711561867603,-1655.41,0.00054246,120]
[320796814,1711561867614,-688.55,0.00054246,120]
[320796815,1711561867624,-2460.7,0.00054246,120]
[320796816,1711561867633,-1308.22,0.00054246,120]
[320796817,1711561867644,-500.0,0.00054246,120]
[320796818,1711561867654,-500.0,0.00054246,120]
[320796819,1711561867665,-500.0,0.00054246,120]
[320796820,1711561867675,-500.0,0.00054246,120]
[320796821,1711561867684,-606.26,0.00054246,120]
[320796822,1711561867695,-3292.56,0.00054246,120]
[320796823,1711561867705,-500.0,0.00054246,120]
[320796824,1711561867714,-500.0,0.00054246,120]
[320796825,1711561867724,-1591.58,0.00054246,120]
[320796826,1711561867733,-4771.81,0.00054246,120]
[320796827,1711561867744,-2911.12,0.00054246,120]
[320796828,1711561867754,-8314.67,0.00054246,21]
[320796829,1711561867764,-500.0,0.00054246,120]
[320796830,1711561867774,-1246.89,0.00054246,120]
[320796831,1711561867784,-151.0,0.00054246,7]
[320796832,1711561867795,-515.6,0.00054246,120]
[320796833,1711561867805,-397.57319276,0.00054246,120]
[320796834,1711561867814,-1689.16,0.00054246,120]
[320796835,1711561867824,-500.0,0.00054246,120]
[320796836,1711561867834,-500.0,0.00054246,120]
[320796837,1711561867845,-770.25,0.00054246,120]
[320796838,1711561867858,-500.0,0.00054246,120]
[320796839,1711561867868,-500.0,0.00054246,120]
[320796840,1711561867877,-500.0,0.00054246,120]
[320796841,1711561867886,-8380.88,0.00054246,120]
[320796842,1711561867897,-614.46,0.00054246,120]
[320796843,1711561867907,-261.1082544,0.00054246,120]
[320796844,1711561867916,-500.0,0.00054246,120]
[320796845,1711561867926,-2989.36,0.00054246,120]
[320796846,1711561867938,-500.0,0.00054246,2]
[320796847,1711561867949,-10959.62,0.00054246,120]
[320796848,1711561867959,-521.47,0.00054246,120]
[320796849,1711561867970,-12744.26,0.00054246,120]
[320796850,1711561867982,-500.0,0.00054246,120]
[320796851,1711561867992,-2645.1,0.00054246,120]
[320796852,1711561868003,-758.38,0.00054246,120]
[320796853,1711561868014,-500.0,0.00054246,120]
[320796854,1711561868023,-557.11261638,0.00054246,120]
[320796855,1711561868033,-500.0,0.00054246,120]
[320796856,1711561868043,-500.0,0.00054246,120]
[320796857,1711561868053,-151.0,0.00054246,120]
[320796858,1711561868063,-500.0,0.00054246,120]
[320796859,1711561868074,-500.0,0.00054246,120]
[320796860,1711561868085,-500.0,0.00054246,120]
[320796861,1711561868095,-11517.5,0.00054246,120]
[320796862,1711561868105,-2628.59,0.00054246,120]
[320796863,1711561868115,-323.62679809,0.00054246,120]
[320796864,1711561868125,-1981.45,0.00054246,120]
[320796865,1711561868134,-500.0,0.00054246,120]
[320796866,1711561868144,-500.0,0.00054246,2]
[320796867,1711561868154,-2618.9,0.00054246,120]
[320796868,1711561868163,-500.0,0.00054246,120]
[320796869,1711561868172,-508.48938092,0.00054246,120]
[320796870,1711561868181,-500.0,0.00054246,120]
[320796871,1711561868191,-2635.65,0.00054246,120]
[320796872,1711561868200,-2440.72,0.00054246,120]
[320796873,1711561868210,-500.0,0.00054246,120]
[320796874,1711561868219,-1641.2,0.00054246,120]
[320796875,1711561868228,-500.0,0.00054246,120]
[320796876,1711561868237,-1422.66,0.00054246,120]
[320796877,1711561868247,-1953.26,0.00054246,120]
[320796878,1711561868257,-500.0,0.00054246,120]
[320796879,1711561868266,-500.0,0.00054246,120]
[320796880,1711561868276,-680.59,0.00054246,120]
[320796881,1711561868286,-500.0,0.00054246,120]
[320796882,1711561868296,-516.23,0.00054246,120]
[320796883,1711561868305,-851.11,0.00054246,120]
[320796884,1711561868316,-833.36,0.00054246,120]
[320796885,1711561868327,-4524.02,0.00054246,120]
[320796886,1711561868336,-500.0,0.00054246,120]
[320796887,1711561868347,-2147.51,0.00054246,120]
[320796888,1711561868356,-151.0,0.00054246,120]
[320796889,1711561868365,-500.0,0.00054246,120]
[320796890,1711561868375,-500.0,0.00054246,120]
[320796891,1711561868384,-281.47206002,0.00054246,120]
[320796892,1711561868395,-176.27173948,0.00054246,120]
[320796893,1711561868404,-1826.97,0.00054246,120]
[320796894,1711561868414,-500.0,0.00054246,120]
[320796895,1711561868426,-500.0,0.00054246,120]
[320796896,1711561868435,-500.0,0.00054246,120]
[320796897,1711561868445,-1200.4,0.00054246,120]
[320796898,1711561868455,-500.0,0.00054246,120]
[320796899,1711561868465,-4994.03,0.00054246,120]
[320796900,1711561868475,-6977.94,0.00054246,120]
[320796901,1711561868484,-500.0,0.00054246,120]
[320796902,1711561868494,-500.0,0.00054246,120]
[320796903,1711561868504,-1042.58,0.00054246,120]
[320796904,1711561868514,-500.0,0.00054246,120]
[320796905,1711561868523,-500.0,0.00054246,120]
[320796906,1711561868532,-500.0,0.00054246,120]
[320796907,1711561868542,-500.0,0.00054246,120]
[320796908,1711561868551,-818.62,0.00054246,120]
[320796909,1711561868561,-1312.03,0.00054246,120]
[320796910,1711561868570,-500.0,0.00054246,120]
[320796911,1711561868581,-1814.79,0.00054246,120]
[320796912,1711561868591,-1730.09,0.00054246,120]
[320796913,1711561868601,-500.0,0.00054246,120]
[320796914,1711561868611,-3092.64,0.00054246,120]
[320796915,1711561868620,-500.0,0.00054246,120]
[320796916,1711561868630,-500.0,0.00054246,120]
[320796917,1711561868639,-500.0,0.00054246,120]
[320796918,1711561868649,-500.0,0.00054246,120]
[320796919,1711561868659,-500.0,0.00054246,120]
[320796920,1711561868668,-500.0,0.00054246,120]
[320796921,1711561868680,-858.06,0.00054246,120]
[320796922,1711561868690,-547.59214946,0.00054246,2]
[320796923,1711561868699,-500.0,0.00054246,120]
[320796924,1711561868709,-3331.35,0.00054246,120]
[320796925,1711561868719,-500.0,0.00054246,120]
[320796926,1711561868732,-500.0,0.00054246,120]
[320796927,1711561868742,-1629.06,0.00054246,120]
[320796928,1711561868753,-1107.56,0.00054246,120]
[320796929,1711561868765,-500.0,0.00054246,120]
[320796930,1711561868775,-500.0,0.00054246,120]
[320796931,1711561868786,-510.16532666,0.00054246,4]
[320796932,1711561868796,-1926.96,0.00054246,120]
[320796933,1711561868806,-500.0,0.00054246,120]
[320796934,1711561868820,-5998.21,0.00054246,120]
[320796935,1711561868831,-499.3669036,0.00054246,120]
[320796936,1711561868841,-1276.61,0.00054246,120]
[320796937,1711561868850,-500.0,0.00054246,120]
[320796938,1711561868861,-510.41100929,0.00054246,120]
[320796939,1711561868882,-1204.74,0.00054246,120]
[320796940,1711561868894,-500.0,0.00054246,120]
[320796941,1711561868904,-500.0,0.00054246,120]
[320796942,1711561868914,-978.47,0.00054246,120]
[320796943,1711561868923,-500.0,0.00054246,120]
[320796944,1711561868936,-500.0,0.00054246,120]
[320796945,1711561868945,-500.0,0.00054246,120]
[320796946,1711561868955,-1112.11,0.00054246,120]
[320796947,1711561868964,-500.0,0.00054246,120]
[320796948,1711561868974,-500.0,0.00054246,120]
[320796949,1711561868983,-158.036351,0.00054246,120]
[320796950,1711561868996,-500.00816116,0.00054246,2]
[320796951,1711561869006,-5147.59,0.00054246,120]
[320796952,1711561869015,-500.0,0.00054246,120]
[320796953,1711561869035,-1278.89,0.00054246,120]
[320796954,1711561869046,-500.0,0.00054246,120]
[320796955,1711561869057,-1257.45,0.00054246,120]
[320796956,1711561869067,-158.036351,0.00054246,120]
[320796957,1711561869078,-500.74956829,0.00054246,120]
[320796958,1711561869088,-500.0,0.00054246,120]
[320796959,1711561869099,-5642.74,0.00054246,120]
[320796960,1711561869109,-500.0,0.00054246,120]
[320796961,1711561869119,-679.21,0.00054246,120]
[320796962,1711561869129,-1894.45,0.00054246,120]
[320796963,1711561869138,-500.0,0.00054246,120]
[320796964,1711561869148,-500.0,0.00054246,120]
[320796965,1711561869158,-735.2165,0.00054247,2]
[320796966,1711561869167,-500.0,0.00054247,2]
[320796967,1711561869177,-500.0,0.00054247,2]
[320796968,1711561869196,-500.0,0.00054247,2]
[320796969,1711561869205,-500.0,0.00054247,2]
[320796970,1711561869215,-500.0,0.00054247,2]
[320796971,1711561869224,-537.5935,0.00054247,2]
[320796972,1711561869233,-181.0,0.0005428,15]
[320796973,1711561869243,-181.0,0.0005429,15]
[320796974,1711561869255,-150.0,0.000543,11]
[320796975,1711561869265,-150.0,0.000543,11]
[320796976,1711561869274,-150.0,0.000543,11]
[320796977,1711561869283,-150.0,0.000543,11]
[320796978,1711561869293,-1286.76227,0.000543,69]
[320796979,1711561869302,-161.997483,0.00054317,30]
[320796980,1711561869311,-154.75091202,0.00054326,60]
[320796981,1711561869321,-1450.58397,0.00054332,120]
[320796982,1711561869334,-9417.89501353,0.00054346,32]
[320796983,1711561869344,-1154.86149141,0.00054386,4]
[320796984,1711561869354,-394.41,0.000544,14]
[320796985,1711561869363,-626.07261576,0.00054419,53]
[320796986,1711561869373,-460.45713346,0.00054419,14]
[320796987,1711561869383,-160.71817672,0.0005442,100]
[320796988,1711561869392,-2435.0,0.0005448,15]
[320796989,1711561869401,-4599.999999,0.0005448,120]
[320796990,1711561869411,-500.6076809,0.00054482,2]
[320796991,1711561869420,-7458.5795966,0.00054482,2]
[320796992,1711561869436,-2435.0,0.0005449,15]
[320796993,1711561869445,-150.19866873,0.00054496,61]
[320796994,1711561869463,-2000.0,0.000545,120]
[320796995,1711561869473,-460.07,0.000545,30]
[320796996,1711561869482,-16450.6972079,0.00054513,2]
[320796997,1711561869492,-44979.0348047,0.00054513,2]
[320796998,1711561869502,-133144.3531703,0.00054513,2]
[320796999,1711561869512,-158.036351,0.00054513,120]
[320797000,1711561869523,-158.036351,0.00054513,120]
[320797001,1711561869533,-790.64145535,0.00054518,4]
[320797002,1711561869543,-150.0,0.00054519,60]
[320797003,1711561869553,-205.41101901,0.00054519,120]
[320797004,1711561869563,-2995.86777484,0.00054519,120]
[320797005,1711561869572,-1000.0,0.00054519,90]
[320797006,1711561869584,-2000.0,0.00054519,30]
[320797007,1711561869593,-264.369939,0.00054519,7]
[320797008,1711561869604,-151.0,0.00054519,120]
[320797009,1711561869621,-151.0,0.00054519,120]
[320797010,1711561869632,-158.036351,0.00054519,120]
[320797011,1711561869643,-158.036351,0.00054519,120]
[320797012,1711561869653,-1413623.52475944,0.00054519,36]
[320797013,1711561869663,-151.67214063,0.00054519,120]
[320797014,1711561869673,-17560.53763991,0.00054519,120]
[320797015,1711561869684,-2000.0,0.0005452,120]
[320797016,1711561869694,-522.0,0.0005452,120]
[320797017,1711561869704,-500.0,0.0005452,120]
[320797018,1711561869715,-500.0,0.0005452,120]
[320797019,1711561869726,-500.0,0.0005452,120]
[320797020,1711561869736,-500.0,0.0005452,120]
[320797021,1711561869745,-500.0,0.0005452,120]
[320797022,1711561869755,-500.0,0.0005452,120]
[320797023,1711561869765,-500.0,0.0005452,120]
[320797024,1711561869775,-563.11,0.0005452,120]
[320797025,1711561869784,-500.0,0.0005452,120]
[320797026,1711561869794,-500.0,0.0005452,120]
[320797027,1711561869804,-500.0,0.0005452,120]
[320797028,1711561869813,-629.47,0.0005452,120]
[320797029,1711561869825,-500.0,0.0005452,120]
[320797030,1711561869835,-500.0,0.0005452,120]
[320797031,1711561869845,-526.94,0.0005452,120]
[320797032,1711561869856,-500.0,0.0005452,120]
[320797033,1711561869867,-500.0,0.0005452,120]
[320797034,1711561869877,-500.0,0.0005452,120]
[320797035,1711561869887,-631.01,0.0005452,120]
[320797036,1711561869897,-500.0,0.0005452,120]
[320797037,1711561869916,-500.0,0.0005452,120]
[320797038,1711561869933,-500.0,0.0005452,120]
[320797039,1711561869950,-500.0,0.0005452,120]
[320797040,1711561869964,-500.0,0.0005452,120]
[320797041,1711561869977,-500.0,0.0005452,120]
[320797042,1711561869987,-500.0,0.0005452,120]
[320797043,1711561869998,-500.0,0.0005452,120]
[320797044,1711561870012,-500.0,0.0005452,120]
[320797045,1711561870031,-500.0,0.0005452,120]
[320797046,1711561870042,-500.0,0.0005452,120]
[320797047,1711561870052,-585.52,0.0005452,120]
[320797048,1711561870062,-500.0,0.0005452,120]
[320797049,1711561870074,-500.0,0.0005452,120]
[320797050,1711561870086,-500.0,0.0005452,120]
[320797051,1711561870097,-500.0,0.0005452,120]
[320797052,1711561870108,-500.0,0.0005452,120]
[320797053,1711561870117,-500.0,0.0005452,120]
[320797054,1711561870127,-217.93174527,0.0005452,120]
[320797055,1711561870138,-500.0,0.0005452,120]
[320797056,1711561870148,-530.38,0.0005452,120]
[320797057,1711561870157,-500.0,0.0005452,120]
[320797058,1711561870167,-500.0,0.0005452,120]
[320797059,1711561870177,-500.0,0.0005452,120]
[320797060,1711561870187,-500.0,0.0005452,120]
[320797061,1711561870196,-500.0,0.0005452,120]
[320797062,1711561870206,-500.0,0.0005452,120]
[320797063,1711561870216,-500.0,0.0005452,120]
[320797064,1711561870226,-500.0,0.0005452,120]
[320797065,1711561870236,-500.0,0.0005452,120]
[320797066,1711561870245,-500.0,0.0005452,120]
[320797067,1711561870255,-500.0,0.0005452,120]
[320797068,1711561870265,-500.0,0.0005452,120]
[320797069,1711561870274,-500.0,0.0005452,120]
[320797070,1711561870284,-500.0,0.0005452,120]
[320797071,1711561870294,-644.28430615,0.0005452,120]
[320797072,1711561870303,-500.0,0.0005452,120]
[320797073,1711561870313,-500.0,0.0005452,120]
[320797074,1711561870324,-500.0,0.0005452,120]
[320797075,1711561870333,-392.75663838,0.0005452,120]
[320797076,1711561870344,-500.0,0.0005452,120]
[320797077,1711561870354,-500.0,0.0005452,120]
[320797078,1711561870364,-500.0,0.0005452,120]
[320797079,1711561870374,-500.0,0.0005452,120]
[320797080,1711561870384,-517.87,0.0005452,120]
[320797081,1711561870394,-350.65945565,0.0005452,120]
[320797082,1711561870403,-500.0,0.0005452,120]
[320797083,1711561870413,-151.0,0.0005452,60]
[320797084,1711561870423,-500.0,0.0005452,120]
[320797085,1711561870432,-500.0,0.0005452,120]
[320797086,1711561870442,-500.0,0.0005452,120]
[320797087,1711561870451,-500.0,0.0005452,120]
[320797088,1711561870461,-736.48,0.0005452,120]
[320797089,1711561870471,-500.0,0.0005452,120]
[320797090,1711561870481,-500.0,0.0005452,120]
[320797091,1711561870491,-500.0,0.0005452,120]
[320797092,1711561870501,-500.0,0.0005452,120]
[320797093,1711561870511,-500.0,0.0005452,120]
[320797094,1711561870522,-500.0,0.0005452,120]
[320797095,1711561870532,-500.0,0.0005452,120]
[320797096,1711561870541,-500.0,0.0005452,120]
[320797097,1711561870551,-500.0,0.0005452,120]
[320797098,1711561870561,-500.0,0.0005452,120]
[320797099,1711561870571,-500.0,0.0005452,120]
[320797100,1711561870581,-1149.15,0.0005452,120]
[320797101,1711561870591,-683.71,0.0005452,120]
[320797102,1711561870601,-500.0,0.0005452,120]
[320797103,1711561870611,-500.0,0.0005452,120]
[320797104,1711561870621,-1000.0,0.0005452,120]
[320797105,1711561870632,-588.63,0.0005452,120]
[320797106,1711561870642,-500.0,0.0005452,120]
[320797107,1711561870652,-1653.05,0.0005452,120]
[320797108,1711561870662,-721.85,0.0005452,120]
[320797109,1711561870672,-758.1,0.0005452,120]
[320797110,1711561870682,-751.34,0.0005452,120]
[320797111,1711561870692,-500.0,0.0005452,120]
[320797112,1711561870702,-500.0,0.0005452,120]
[320797113,1711561870712,-500.0,0.0005452,120]
[320797114,1711561870722,-500.0,0.0005452,120]
[320797115,1711561870732,-500.0,0.0005452,120]
[320797116,1711561870742,-1106.66,0.0005452,120]
[320797117,1711561870752,-500.0,0.0005452,120]
[320797118,1711561870762,-500.0,0.0005452,15]
[320797119,1711561870772,-667.72,0.0005452,120]
[320797120,1711561870782,-500.0,0.0005452,120]
[320797121,1711561870792,-546.53,0.0005452,120]
[320797122,1711561870802,-525.52,0.0005452,120]
[320797123,1711561870812,-151.0,0.0005452,30]
[320797124,1711561870823,-500.0,0.0005452,120]
[320797125,1711561870833,-479.42,0.0005452,120]
[320797126,1711561870844,-500.0,0.0005452,120]
[320797127,1711561870854,-204.67078,0.0005452,30]
[320797128,1711561870867,-1650.28,0.0005452,120]
[320797129,1711561870877,-1208.64,0.0005452,120]
[320797130,1711561870888,-500.0,0.0005452,120]
[320797131,1711561870899,-500.0,0.0005452,120]
[320797132,1711561870909,-500.0,0.0005452,120]
[320797133,1711561870921,-500.0,0.0005452,120]
[320797134,1711561870933,-1675.07,0.0005452,120]
[320797135,1711561870943,-500.0,0.0005452,120]
[320797136,1711561870954,-500.0,0.0005452,120]
[320797137,1711561870963,-500.0,0.0005452,120]
[320797138,1711561870973,-500.0,0.0005452,120]
[320797139,1711561870983,-500.0,0.0005452,120]
[320797140,1711561870993,-500.0,0.0005452,60]
[320797141,1711561871004,-875.05,0.0005452,120]
[320797142,1711561871013,-500.0,0.0005452,120]
[320797143,1711561871023,-500.0,0.0005452,120]
[320797144,1711561871033,-500.0,0.0005452,120]
[320797145,1711561871043,-500.0,0.0005452,120]
[320797146,1711561871053,-500.0,0.0005452,120]
[320797147,1711561871062,-896.37,0.0005452,120]
[320797148,1711561871072,-526.04,0.0005452,120]
[320797149,1711561871082,-500.0,0.0005452,120]
[320797150,1711561871092,-500.0,0.0005452,120]
[320797151,1711561871102,-774.53,0.0005452,120]
[320797152,1711561871112,-623.96,0.0005452,120]
[320797153,1711561871122,-151.0,0.0005452,120]
[320797154,1711561871131,-500.0,0.0005452,120]
[320797155,1711561871141,-1500.57,0.0005452,120]
[320797156,1711561871150,-500.0,0.0005452,120]
[320797157,1711561871159,-500.0,0.0005452,120]
[320797158,1711561871169,-500.0,0.0005452,120]
[320797159,1711561871178,-1293.46,0.0005452,120]
[320797160,1711561871188,-663.1,0.0005452,120]
[320797161,1711561871197,-500.0,0.0005452,120]
[320797162,1711561871207,-301.21348107,0.0005452,2]
[320797163,1711561871216,-500.0,0.0005452,120]
[320797164,1711561871226,-500.0,0.0005452,120]
[320797165,1711561871236,-575.46085832,0.0005452,120]
[320797166,1711561871246,-591.57,0.0005452,120]
[320797167,1711561871255,-540.2,0.0005452,120]
[320797168,1711561871265,-500.0,0.0005452,120]
[320797169,1711561871275,-500.0,0.0005452,120]
[320797170,1711561871284,-500.0,0.0005452,120]
[320797171,1711561871294,-500.0,0.0005452,120]
[320797172,1711561871304,-826.04,0.0005452,120]
[320797173,1711561871314,-802.7,0.0005452,120]
[320797174,1711561871324,-500.0,0.0005452,120]
[320797175,1711561871334,-500.0,0.0005452,120]
[320797176,1711561871344,-792.47,0.0005452,120]
[320797177,1711561871354,-551.8,0.0005452,120]
[320797178,1711561871363,-500.0,0.0005452,120]
[320797179,1711561871372,-500.0,0.0005452,120]
[320797180,1711561871382,-507.03,0.0005452,120]
[320797181,1711561871391,-814.62,0.0005452,120]
[320797182,1711561871403,-500.0,0.0005452,120]
[320797183,1711561871412,-500.0,0.0005452,120]
[320797184,1711561871421,-500.0,0.0005452,120]
[320797185,1711561871430,-519.12,0.0005452,120]
[320797186,1711561871440,-499.35149339,0.0005452,2]
[320797187,1711561871450,-500.0,0.0005452,120]
[320797188,1711561871460,-500.0,0.0005452,120]
[320797189,1711561871474,-500.0,0.0005452,120]
[320797190,1711561871483,-500.0,0.0005452,120]
[320797191,1711561871492,-553.94,0.0005452,120]
[320797192,1711561871502,-1363.26,0.0005452,120]
[320797193,1711561871512,-1247.0,0.0005452,120]
[320797194,1711561871522,-681.15,0.0005452,120]
[320797195,1711561871532,-500.0,0.0005452,120]
[320797196,1711561871542,-828.0,0.0005452,120]
[320797197,1711561871552,-500.0,0.0005452,120]
[320797198,1711561871562,-500.0,0.0005452,120]
[320797199,1711561871572,-907.95,0.0005452,120]
[320797200,1711561871584,-691.03,0.0005452,120]
[320797201,1711561871594,-500.0,0.0005452,120]
[320797202,1711561871604,-500.0,0.0005452,120]
[320797203,1711561871614,-500.0,0.0005452,120]
[320797204,1711561871624,-500.0,0.0005452,120]
[320797205,1711561871634,-500.0,0.0005452,120]
[320797206,1711561871644,-500.0,0.0005452,120]
[320797207,1711561871655,-1943.45,0.0005452,120]
[320797208,1711561871665,-1363.72,0.0005452,120]
[320797209,1711561871675,-204.288628,0.0005452,120]
[320797210,1711561871685,-500.0,0.0005452,120]
[320797211,1711561871695,-500.0,0.0005452,120]
[320797212,1711561871706,-204.288628,0.0005452,120]
[320797213,1711561871716,-510.51,0.0005452,120]
[320797214,1711561871726,-500.0,0.0005452,120]
[320797215,1711561871736,-1264.66,0.0005452,120]
[320797216,1711561871747,-500.0,0.0005452,120]
[320797217,1711561871757,-518.11,0.0005452,120]
[320797218,1711561871768,-500.0,0.0005452,120]
[320797219,1711561871778,-500.0,0.0005452,120]
[320797220,1711561871788,-587.41491048,0.0005452,120]
[320797221,1711561871799,-191.520487,0.0005452,120]
[320797222,1711561871809,-785.6,0.0005452,120]
[320797223,1711561871819,-151.0,0.0005452,120]
[320797224,1711561871832,-500.0,0.0005452,120]
[320797225,1711561871844,-500.0,0.0005452,120]
[320797226,1711561871855,-500.0,0.0005452,120]
[320797227,1711561871866,-533.96,0.0005452,120]
[320797228,1711561871876,-191.520487,0.0005452,120]
[320797229,1711561871886,-610.76,0.0005452,120]
[320797230,1711561871897,-500.0,0.0005452,120]
[320797231,1711561871907,-500.0,0.0005452,120]
[320797232,1711561871917,-168.7,0.0005452,120]
[320797233,1711561871928,-250.635261,0.0005452,120]
[320797234,1711561871939,-500.0,0.0005452,120]
[320797235,1711561871951,-500.0,0.0005452,120]
[320797236,1711561871961,-619.35,0.0005452,120]
[320797237,1711561871971,-601.27,0.0005452,120]
[320797238,1711561871981,-250.635261,0.0005452,120]
[320797239,1711561871991,-151.576563,0.0005452,120]
[320797240,1711561872001,-500.0,0.0005452,120]
[320797241,1711561872012,-500.0,0.0005452,120]
[320797242,1711561872021,-723.32,0.0005452,120]
[320797243,1711561872031,-240.242065,0.0005452,120]
[320797244,1711561872041,-151.576563,0.0005452,120]
[320797245,1711561872051,-658.94,0.0005452,30]
[320797246,1711561872061,-240.242065,0.0005452,120]
[320797247,1711561872071,-604.53,0.0005452,120]
[320797248,1711561872082,-500.0,0.0005452,120]
[320797249,1711561872091,-151.0,0.0005452,120]
[320797250,1711561872101,-500.0,0.0005452,120]
[320797251,1711561872111,-627.6,0.0005452,120]
[320797252,1711561872121,-342.284432,0.0005452,120]
[320797253,1711561872131,-500.0,0.0005452,120]
[320797254,1711561872141,-342.284432,0.0005452,120]
[320797255,1711561872151,-541.49,0.0005452,120]
[320797256,1711561872162,-500.0,0.0005452,120]
[320797257,1711561872176,-525.41,0.0005452,120]
[320797258,1711561872187,-500.0,0.0005452,120]
[320797259,1711561872197,-1259.13,0.0005452,120]
[320797260,1711561872208,-500.0,0.0005452,120]
[320797261,1711561872218,-500.0,0.0005452,120]
[320797262,1711561872229,-500.0,0.0005452,120]
[320797263,1711561872240,-500.0,0.0005452,120]
[320797264,1711561872251,-500.0,0.0005452,120]
[320797265,1711561872262,-500.0,0.0005452,120]
[320797266,1711561872272,-1285.86,0.0005452,120]
[320797267,1711561872282,-1118.41,0.0005452,120]
[320797268,1711561872293,-961.87,0.0005452,120]
[320797269,1711561872303,-500.0,0.0005452,120]
[320797270,1711561872312,-500.0,0.0005452,120]
[320797271,1711561872323,-500.0,0.0005452,120]
[320797272,1711561872333,-500.0,0.0005452,120]
[320797273,1711561872344,-500.0,0.0005452,120]
[320797274,1711561872355,-653.33,0.0005452,120]
[320797275,1711561872366,-500.0,0.0005452,120]
[320797276,1711561872377,-500.0,0.0005452,120]
[320797277,1711561872387,-515.61,0.0005452,120]
[320797278,1711561872397,-500.0,0.0005452,120]
[320797279,1711561872407,-500.0,0.0005452,120]
[320797280,1711561872418,-394.6,0.0005452,120]
[320797281,1711561872429,-500.0,0.0005452,120]
[320797282,1711561872439,-500.0,0.0005452,120]
[320797283,1711561872449,-500.0,0.0005452,120]
[320797284,1711561872459,-881.34,0.0005452,120]
[320797285,1711561872469,-594.96,0.0005452,120]
[320797286,1711561872479,-500.0,0.0005452,120]
[320797287,1711561872489,-500.0,0.0005452,120]
[320797288,1711561872500,-635.55,0.0005452,120]
[320797289,1711561872510,-500.0,0.0005452,120]
[320797290,1711561872522,-500.0,0.0005452,120]
[320797291,1711561872533,-447.68,0.0005452,120]
[320797292,1711561872544,-500.0,0.0005452,120]
[320797293,1711561872554,-500.0,0.0005452,120]
[320797294,1711561872565,-569.07,0.0005452,120]
[320797295,1711561872575,-500.0,0.0005452,120]
[320797296,1711561872586,-507.05,0.0005452,120]
[320797297,1711561872596,-513.81,0.0005452,120]
[320797298,1711561872606,-885.2,0.0005452,120]